lending/lending_fUSD_20241014
["ID","MTS","AMOUNT","RATE_DAILY","PERIOD"]
[340245768,1728915042411,-151.0,0.000138,2]
[340245769,1728915042421,-158.457949,0.000138,2]
[340245770,1728915042431,-254.897816,0.000138,2]
[340245771,1728915042441,-254.897816,0.000138,2]
[340245772,1728915042451,-1136.935222,0.000138,2]
[340245773,1728915042462,-1136.935222,0.000138,2]
[340245774,1728915042472,-436.085427,0.000138,2]
[340245775,1728915042481,-436.085427,0.000138,2]
[340245776,1728915042491,-157.341315,0.000138,2]
[340245777,1728915042500,-2028.055498,0.000138,2]
[340245778,1728915042510,-2028.055498,0.000138,2]
[340245779,1728915042519,-151.0,0.000138,2]
[340245780,1728915042529,-241.736193,0.000138,2]
[340245781,1728915042539,-394821.548951,0.000138,3]
[340245782,1728915042548,-151.0,0.000138,2]
[340245783,1728915042559,-241.736193,0.000138,2]
[340245784,1728915042568,-428.873345,0.000138,2]
[340245785,1728915042578,-428.873345,0.000138,2]
[340245786,1728915042587,-151.0,0.000138,2]
[340245787,1728915042597,-151.0,0.000138,2]
[340245788,1728915042607,-151.0,0.000138,2]
[340245789,1728915042616,-194.98427,0.000138,2]
[340245790,1728915042626,-194.98427,0.000138,2]
[340245791,1728915042635,-151.0,0.000138,2]
[340245792,1728915042644,-157.620499,0.000138,2]
[340245793,1728915042654,-157.620499,0.000138,2]
[340245794,1728915042663,-194.98427,0.000138,2]
[340245795,1728915042673,-194.98427,0.000138,2]
[340245796,1728915042683,-157.620499,0.000138,2]
[340245797,1728915042692,-157.620499,0.000138,2]
[340245798,1728915042702,-151.0,0.000138,2]
[340245799,1728915042713,-159.885347,0.000138,2]
[340245800,1728915042722,-159.885347,0.000138,2]
[340245801,1728915042731,-158.679006,0.000138,2]
[340245803,1728915042740,-158.679006,0.000138,2]
[340245804,1728915042750,-151.0,0.000138,2]
[340245805,1728915042759,-151.0,0.000138,2]
[340245806,1728915042769,-151.0,0.000138,2]
[340245807,1728915042778,-163.006667,0.000138,2]
[340245808,1728915042787,-761.956052,0.000138,2]
[340245809,1728915042797,-1000.0,0.0001387,2]
[340245810,1728915042806,-500.0,0.0001387,2]
[340245811,1728915042815,-151.0,0.000139,2]
[340245812,1728915042825,-151.0,0.000139,2]
[340245813,1728915042834,-151.0,0.000139,2]
[340245814,1728915042843,-151.0,0.000139,2]
[340245815,1728915042857,-151.0,0.000139,2]
[340245816,1728915042867,-151.0,0.000139,2]
[340245817,1728915042876,-151.0,0.000139,2]
[340245818,1728915042886,-151.0,0.000139,2]
[340245820,1728915042897,-151.0,0.000139,2]
[340245821,1728915042906,-151.0,0.000139,2]
[340245823,1728915042916,-151.0,0.000139,2]
[340245824,1728915042925,-568.473388,0.000139,2]
[340245825,1728915042937,-568.473388,0.000139,2]
[340245826,1728915042947,-151.0,0.000139,2]
[340245827,1728915042956,-151.0,0.000139,2]
[340245828,1728915042967,-2764.15205,0.000139,2]
[340245829,1728915042977,-2764.15205,0.000139,2]
[340245830,1728915042987,-151.0,0.000139,2]
[340245831,1728915042997,-151.0,0.000139,2]
[340245832,1728915043007,-151.0,0.000139,2]
[340245833,1728915043016,-411.134264,0.000139,2]
[340245835,1728915043026,-151.0,0.000139,2]
[340245837,1728915043036,-151.0,0.000139,2]
[340245839,1728915043045,-151.0,0.000139,2]
[340245841,1728915043055,-151.0,0.000139,2]
[340245842,1728915043064,-151.0,0.000139,2]
[340245843,1728915043074,-199.598128,0.000139,2]
[340245844,1728915043083,-199.598128,0.000139,2]
[340245845,1728915043093,-151.0,0.000139,2]
[340245846,1728915043102,-151.0,0.000139,2]
[340245847,1728915043112,-151.0,0.000139,2]
[340245848,1728915043121,-151.0,0.000139,2]
[340245849,1728915043131,-154.270462,0.000139,2]
[340245850,1728915043140,-151.0,0.000139,2]
[340245851,1728915043149,-151.0,0.000139,2]
[340245852,1728915043159,-154.493717,0.000139,2]
[340245853,1728915043168,-151.0,0.000139,2]
[340245854,1728915043178,-151.0,0.000139,2]
[340245855,1728915043187,-151.0,0.000139,2]
[340245856,1728915043196,-178.66769,0.000139,2]
[340245857,1728915043206,-178.66769,0.000139,2]
[340245858,1728915043217,-178.66769,0.000139,2]
[340245859,1728915043227,-178.66769,0.000139,2]
[340245860,1728915043236,-151.0,0.000139,2]
[340245861,1728915043246,-151.0,0.000139,2]
[340245862,1728915043255,-151.0,0.000139,2]
[340245863,1728915043265,-151.0,0.000139,2]
[340245864,1728915043275,-197.697859,0.000139,2]
[340245865,1728915043284,-197.697859,0.000139,2]
[340245866,1728915043293,-197.697859,0.000139,2]
[340245867,1728915043303,-197.697859,0.000139,2]
[340245868,1728915043313,-151.0,0.000139,2]
[340245869,1728915043323,-151.0,0.000139,2]
[340245870,1728915043332,-730.29271,0.000139,2]
[340245871,1728915043342,-730.29271,0.000139,2]
[340245872,1728915043351,-151.0,0.000139,2]
[340245873,1728915043361,-151.0,0.000139,2]
[340245874,1728915043371,-151.0,0.000139,2]
[340245875,1728915043380,-151.0,0.000139,2]
[340245876,1728915043390,-222.769299,0.000139,2]
[340245877,1728915043399,-222.769299,0.000139,2]
[340245878,1728915043409,-222.769299,0.000139,2]
[340245879,1728915043419,-222.769299,0.000139,2]
[340245880,1728915043428,-648.501164,0.000139,2]
[340245881,1728915043437,-648.501164,0.000139,2]
[340245882,1728915043447,-648.501164,0.000139,2]
[340245883,1728915043456,-648.501164,0.000139,2]
[340245884,1728915043467,-530.00401,0.000139,2]
[340245885,1728915043476,-530.00401,0.000139,2]
[340245886,1728915043486,-218.37,0.000139,2]
[340245887,1728915043495,-218.37,0.000139,2]
[340245888,1728915043505,-530.00401,0.000139,2]
[340245889,1728915043514,-218.37,0.000139,2]
[340245891,1728915043523,-530.00401,0.000139,2]
[340245892,1728915043533,-218.37,0.000139,2]
[340245893,1728915043542,-202.54179,0.000139,2]
[340245894,1728915043551,-202.54179,0.000139,2]
[340245895,1728915043560,-202.54179,0.000139,2]
[340245896,1728915043570,-202.54179,0.000139,2]
[340245897,1728915043579,-151.0,0.000139,2]
[340245898,1728915043589,-151.0,0.000139,2]
[340245899,1728915043599,-294.936239,0.000139,2]
[340245900,1728915043608,-330.218464,0.000139,2]
[340245901,1728915043618,-330.218464,0.000139,2]
[340245902,1728915043627,-330.218464,0.000139,2]
[340245903,1728915043636,-330.218464,0.000139,2]
[340245904,1728915043646,-151.0,0.000139,2]
[340245905,1728915043656,-151.0,0.000139,2]
[340245906,1728915043666,-151.0,0.000139,2]
[340245907,1728915043675,-151.0,0.000139,2]
[340245908,1728915043685,-151.0,0.000139,2]
[340245909,1728915043694,-151.0,0.000139,2]
[340245910,1728915043704,-211.743206,0.000139,2]
[340245911,1728915043715,-151.0,0.000139,2]
[340245912,1728915043725,-179.562756,0.000139,2]
[340245913,1728915043734,-151.0,0.000139,2]
[340245914,1728915043743,-179.562756,0.000139,2]
[340245915,1728915043753,-179.562756,0.000139,2]
[340245916,1728915043762,-179.562756,0.000139,2]
[340245917,1728915043771,-510.659858,0.000139,2]
[340245918,1728915043781,-510.659858,0.000139,2]
[340245919,1728915043790,-510.659858,0.000139,2]
[340245920,1728915043799,-510.659858,0.000139,2]
[340245921,1728915043808,-151.0,0.000139,2]
[340245922,1728915043817,-151.0,0.000139,2]
[340245923,1728915043901,-263.294243,0.000139,2]
[340245924,1728915043911,-263.294243,0.000139,2]
[340245925,1728915043920,-263.294243,0.000139,2]
[340245926,1728915043931,-263.294243,0.000139,2]
[340245927,1728915043940,-157.182502,0.000139,2]
[340245928,1728915043950,-157.182502,0.000139,2]
[340245929,1728915043959,-157.182502,0.000139,2]
[340245930,1728915043970,-157.182502,0.000139,2]
[340245931,1728915043979,-197.488874,0.000139,2]
[340245932,1728915043988,-197.488874,0.000139,2]
[340245933,1728915043997,-197.488874,0.000139,2]
[340245934,1728915044007,-197.488874,0.000139,2]
[340245935,1728915044016,-250.10175,0.000139,2]
[340245936,1728915044024,-250.10175,0.000139,2]
[340245937,1728915044033,-250.10175,0.000139,2]
[340245938,1728915044043,-250.10175,0.000139,2]
[340245939,1728915044052,-151.0,0.000139,2]
[340245940,1728915044061,-151.0,0.000139,2]
[340245941,1728915044070,-151.0,0.000139,2]
[340245942,1728915044079,-151.0,0.000139,2]
[340245943,1728915044088,-151.0,0.000139,2]
[340245944,1728915044097,-151.0,0.000139,2]
[340245945,1728915044106,-151.0,0.000139,2]
[340245946,1728915044115,-151.0,0.000139,2]
[340245947,1728915044124,-151.0,0.000139,2]
[340245948,1728915044133,-900.419842,0.000139,2]
[340245949,1728915044142,-900.419842,0.000139,2]
[340245950,1728915044151,-900.419842,0.000139,2]
[340245951,1728915044160,-900.419842,0.000139,2]
[340245952,1728915044169,-151.0,0.000139,2]
[340245953,1728915044178,-151.0,0.000139,2]
[340245954,1728915044187,-210.833849,0.000139,2]
[340245955,1728915044196,-210.833849,0.000139,2]
[340245956,1728915044205,-440.804491,0.000139,2]
[340245957,1728915044214,-440.804491,0.000139,2]
[340245958,1728915044223,-210.833849,0.000139,2]
[340245959,1728915044232,-210.833849,0.000139,2]
[340245960,1728915044242,-440.804491,0.000139,2]
[340245961,1728915044251,-440.804491,0.000139,2]
[340245962,1728915044260,-1129.573951,0.000139,2]
[340245963,1728915044269,-1129.573951,0.000139,2]
[340245964,1728915044278,-314.196569,0.000139,2]
[340245965,1728915044287,-314.196569,0.000139,2]
[340245966,1728915044296,-1129.573951,0.000139,2]
[340245967,1728915044305,-1129.573951,0.000139,2]
[340245968,1728915044314,-314.196569,0.000139,2]
[340245969,1728915044324,-314.196569,0.000139,2]
[340245970,1728915044333,-580.939491,0.000139,2]
[340245971,1728915044342,-580.939491,0.000139,2]
[340245972,1728915044351,-151.0,0.000139,2]
[340245973,1728915044360,-151.0,0.000139,2]
[340245974,1728915044370,-258.525234,0.000139,2]
[340245975,1728915044379,-258.525234,0.000139,2]
[340245976,1728915044388,-580.939491,0.000139,2]
[340245977,1728915044397,-204.172561,0.000139,2]
[340245978,1728915044407,-580.939491,0.000139,2]
[340245979,1728915044416,-204.172561,0.000139,2]
[340245980,1728915044425,-258.525234,0.000139,2]
[340245981,1728915044434,-151.0,0.000139,2]
[340245982,1728915044443,-258.525234,0.000139,2]
[340245983,1728915044452,-151.0,0.000139,2]
[340245984,1728915044461,-204.172561,0.000139,2]
[340245985,1728915044471,-204.172561,0.000139,2]
[340245986,1728915044480,-151.0,0.000139,2]
[340245987,1728915044489,-151.0,0.000139,2]
[340245988,1728915044498,-3435.628407,0.000139,2]
[340245989,1728915044507,-3435.628407,0.000139,2]
[340245990,1728915044516,-3435.628407,0.000139,2]
[340245991,1728915044525,-3435.628407,0.000139,2]
[340245992,1728915044535,-151.0,0.000139,2]
[340245993,1728915044543,-151.0,0.000139,2]
[340245994,1728915044552,-254.897816,0.000139,2]
[340245995,1728915044561,-254.897816,0.000139,2]
[340245996,1728915044570,-254.897816,0.000139,2]
[340245997,1728915044580,-254.897816,0.000139,2]
[340245998,1728915044589,-1136.935222,0.000139,2]
[340245999,1728915044598,-1136.935222,0.000139,2]
[340246000,1728915044607,-1136.935222,0.000139,2]
[340246001,1728915044617,-1136.935222,0.000139,2]
[340246002,1728915044626,-436.085427,0.000139,2]
[340246003,1728915044635,-436.085427,0.000139,2]
[340246004,1728915044644,-436.085427,0.000139,2]
[340246005,1728915044653,-436.085427,0.000139,2]
[340246006,1728915044662,-2028.055498,0.000139,2]
[340246007,1728915044671,-2028.055498,0.000139,2]
[340246008,1728915044680,-2028.055498,0.000139,2]
[340246009,1728915044690,-2028.055498,0.000139,2]
[340246010,1728915044699,-151.0,0.000139,2]
[340246011,1728915044708,-151.0,0.000139,2]
[340246012,1728915044717,-241.736193,0.000139,2]
[340246013,1728915044726,-241.736193,0.000139,2]
[340246014,1728915044735,-340755.897261,0.000139,3]
[340246015,1728915044744,-151.0,0.000139,2]
[340246016,1728915044754,-241.736193,0.000139,2]
[340246017,1728915044763,-151.0,0.000139,2]
[340246018,1728915044772,-241.736193,0.000139,2]
[340246019,1728915044782,-428.873345,0.000139,2]
[340246020,1728915044791,-428.873345,0.000139,2]
[340246021,1728915044800,-428.873345,0.000139,2]
[340246022,1728915044809,-428.873345,0.000139,2]
[340246023,1728915044818,-151.0,0.000139,2]
[340246024,1728915044827,-158.542165,0.000139,2]
[340246025,1728915044837,-151.0,0.000139,2]
[340246026,1728915044846,-151.0,0.000139,2]
[340246027,1728915044858,-233.121912,0.000139,2]
[340246028,1728915044868,-151.0,0.000139,2]
[340246029,1728915044877,-151.0,0.000139,2]
[340246030,1728915044886,-194.98427,0.000139,2]
[340246031,1728915044896,-151.0,0.000139,2]
[340246032,1728915044906,-194.98427,0.000139,2]
[340246033,1728915044916,-151.0,0.000139,2]
[340246034,1728915044925,-151.0,0.000139,2]
[340246035,1728915044937,-157.620499,0.000139,2]
[340246036,1728915044947,-157.620499,0.000139,2]
[340246037,1728915044956,-194.98427,0.000139,2]
[340246038,1728915044967,-194.98427,0.000139,2]
[340246039,1728915044976,-157.620499,0.000139,2]
[340246040,1728915044985,-157.620499,0.000139,2]
[340246041,1728915044994,-151.0,0.000139,2]
[340246042,1728915045003,-151.0,0.000139,2]
[340246043,1728915045013,-159.885347,0.000139,2]
[340246044,1728915045022,-159.885347,0.000139,2]
[340246045,1728915045032,-159.885347,0.000139,2]
[340246046,1728915045041,-159.885347,0.000139,2]
[340246047,1728915045051,-158.679006,0.000139,2]
[340246048,1728915045060,-158.679006,0.000139,2]
[340246049,1728915045069,-158.679006,0.000139,2]
[340246050,1728915045078,-158.679006,0.000139,2]
[340246051,1728915045087,-158.679006,0.000139,2]
[340246052,1728915045096,-158.679006,0.000139,2]
[340246053,1728915045105,-151.0,0.000139,2]
[340246054,1728915045115,-151.0,0.000139,2]
[340246055,1728915045124,-761.956052,0.000139,2]
[340246056,1728915045133,-761.956052,0.000139,2]
[340246057,1728915045142,-761.956052,0.000139,2]
[340246058,1728915045151,-194.98427,0.0001396,2]
[340246059,1728915045160,-157.620499,0.0001396,2]
[340246060,1728915045169,-194.98427,0.0001396,2]
[340246061,1728915045178,-157.620499,0.0001396,2]
[340246062,1728915045187,-151.0,0.0001396,2]
[340246063,1728915045266,-1000.0,0.0001397,2]
[340246064,1728915045276,-1000.0,0.0001397,2]
[340246065,1728915045286,-500.0,0.0001397,2]
[340246066,1728915045295,-500.0,0.0001397,2]
[340246067,1728915045304,-202.54179,0.00014,2]
[340246068,1728915045313,-202.54179,0.00014,2]
[340246069,1728915045322,-179.562756,0.00014,2]
[340246070,1728915045331,-179.562756,0.00014,2]
[340246071,1728915045340,-650.0,0.00014,2]
[340246072,1728915045350,-1136.935222,0.00014377,2]
[340246073,1728915045359,-1136.935222,0.00014377,2]
[340246074,1728915045368,-2028.055498,0.00014377,2]
[340246075,1728915045377,-2028.055498,0.00014377,2]
[340246076,1728915045387,-151.0,0.00014377,2]
[340246077,1728915045396,-241.736193,0.00014377,2]
[340246078,1728915045405,-242.794424,0.00014377,2]
[340246079,1728915045415,-241.736193,0.00014377,2]
[340246080,1728915045424,-151.0,0.00014377,2]
[340246081,1728915045434,-159.172954,0.00014377,2]
[340246082,1728915045443,-151.0,0.00014377,2]
[340246083,1728915045453,-159.885347,0.00014377,2]
[340246084,1728915045462,-159.885347,0.00014377,2]
[340246085,1728915045472,-158.679006,0.00014377,2]
[340246086,1728915045482,-158.679006,0.00014377,2]
[340246087,1728915045491,-761.956052,0.00014377,2]
[340246088,1728915045500,-9652.95187858,0.00014377,2]
[340246089,1728915045510,-1000.0,0.00014447,2]
[340246090,1728915045519,-236.47,0.00014499,2]
[340246091,1728915045529,-150.0,0.00014534,2]
[340246092,1728915045538,-5883.0,0.00014534,2]
[340246093,1728915045548,-1150.0,0.00014534,2]
[340246094,1728915045558,-13529.0,0.00014534,2]
[340246095,1728915045567,-1083.0,0.00014534,2]
[340246096,1728915045576,-3435.628407,0.00014733,2]
[340246097,1728915045586,-3435.628407,0.00014733,2]
[340246098,1728915045595,-151.0,0.00014733,2]
[340246099,1728915045604,-1354.9564213,0.00014733,2]
[340246100,1728915045613,-424.09,0.00014822,2]
[340246101,1728915045623,-755.74,0.00014822,2]
[340246102,1728915045632,-847.78,0.00014888,2]
[340246103,1728915045641,-180.0,0.00015,2]
[340246104,1728915045650,-351.0,0.00015,2]
[340246105,1728915045659,-151.0,0.00015,2]
[340246106,1728915045668,-580.939491,0.00015,2]
[340246107,1728915045677,-258.525234,0.00015,2]
[340246108,1728915045687,-580.939491,0.00015,2]
[340246109,1728915045696,-204.172561,0.00015,2]
[340246110,1728915045705,-258.525234,0.00015,2]
[340246111,1728915045716,-204.172561,0.00015,2]
[340246112,1728915045725,-254.897816,0.00015,2]
[340246113,1728915045734,-254.897816,0.00015,2]
[340246114,1728915045743,-436.085427,0.00015,2]
[340246115,1728915045752,-436.085427,0.00015,2]
[340246116,1728915045761,-428.873345,0.00015,2]
[340246117,1728915045771,-428.873345,0.00015,2]
[340246118,1728915045780,-763.98,0.00015432,2]
[340246119,1728915045789,-151.0,0.00015753,2]
[340246120,1728915045798,-151.0,0.00015753,2]
[340246121,1728915045807,-197.697859,0.00015753,2]
[340246122,1728915045816,-197.697859,0.00015753,2]
[340246123,1728915045825,-151.0,0.00015753,2]
[340246124,1728915045834,-730.29271,0.00015753,2]
[340246125,1728915045844,-151.0,0.00015753,2]
[340246126,1728915045853,-203.757396,0.00015753,2]
[340246127,1728915045866,-222.769299,0.00015753,2]
[340246128,1728915045875,-222.769299,0.00015753,2]
[340246129,1728915045885,-648.501164,0.00015753,2]
[340246131,1728915045894,-648.501164,0.00015753,2]
[340246133,1728915045904,-530.00401,0.00015753,2]
[340246134,1728915045913,-218.37,0.00015753,2]
[340246135,1728915045923,-530.00401,0.00015753,2]
[340246136,1728915045934,-218.37,0.00015753,2]
[340246137,1728915045943,-202.54179,0.00015753,2]
[340246138,1728915045952,-202.54179,0.00015753,2]
[340246139,1728915045961,-151.0,0.00015753,2]
[340246140,1728915045971,-330.218464,0.00015753,2]
[340246141,1728915045980,-330.218464,0.00015753,2]
[340246142,1728915045989,-151.0,0.00015753,2]
[340246143,1728915045999,-179.562756,0.00015753,2]
[340246144,1728915046008,-179.562756,0.00015753,2]
[340246145,1728915046018,-155.194728,0.00015753,2]
[340246146,1728915046027,-151.0,0.00015753,2]
[340246147,1728915046036,-263.294243,0.00015753,2]
[340246148,1728915046045,-263.294243,0.00015753,2]
[340246149,1728915046054,-157.182502,0.00015753,2]
[340246150,1728915046064,-157.182502,0.00015753,2]
[340246151,1728915046073,-197.488874,0.00015753,2]
[340246152,1728915046082,-197.488874,0.00015753,2]
[340246153,1728915046091,-250.10175,0.00015753,2]
[340246154,1728915046100,-250.10175,0.00015753,2]
[340246155,1728915046114,-151.0,0.00015753,2]
[340246156,1728915046124,-158.913676,0.00015753,2]
[340246157,1728915046133,-151.0,0.00015753,2]
[340246158,1728915046143,-151.0,0.00015753,2]
[340246159,1728915046152,-151.0,0.00015753,2]
[340246160,1728915046162,-900.419842,0.00015753,2]
[340246161,1728915046171,-900.419842,0.00015753,2]
[340246162,1728915046180,-210.833849,0.00015753,2]
[340246163,1728915046189,-440.804491,0.00015753,2]
[340246164,1728915046198,-210.833849,0.00015753,2]
[340246165,1728915046208,-440.804491,0.00015753,2]
[340246166,1728915046218,-1129.573951,0.00015753,2]
[340246167,1728915046227,-314.196569,0.00015753,2]
[340246168,1728915046237,-1129.573951,0.00015753,2]
[340246169,1728915046246,-314.196569,0.00015753,2]
[340246170,1728915046255,-151.0,0.00015753,2]
[340246171,1728915046267,-151.0,0.00015753,2]
[340246172,1728915046276,-151.0,0.00015753,2]
[340246173,1728915046286,-1136.935222,0.00015753,2]
[340246174,1728915046296,-1136.935222,0.00015753,2]
[340246175,1728915046305,-2028.055498,0.00015753,2]
[340246176,1728915046315,-2028.055498,0.00015753,2]
[340246177,1728915046324,-151.0,0.00015753,2]
[340246178,1728915046334,-241.736193,0.00015753,2]
[340246179,1728915046343,-241.736193,0.00015753,2]
[340246180,1728915046352,-194.98427,0.00015753,2]
[340246181,1728915046361,-157.620499,0.00015753,2]
[340246182,1728915046371,-194.98427,0.00015753,2]
[340246183,1728915046380,-157.620499,0.00015753,2]
[340246184,1728915046389,-151.0,0.00015753,2]
[340246185,1728915046399,-159.885347,0.00015753,2]
[340246186,1728915046409,-159.885347,0.00015753,2]
[340246187,1728915046419,-151.0,0.00015753,2]
[340246188,1728915046428,-1000.0,0.0001576,2]
[340246189,1728915046438,-1562.48675604,0.0001576,2]
[340246191,1728915046447,-151.0,0.00015763,2]
[340246193,1728915046456,-179.553814,0.00015763,2]
[340246194,1728915046529,-358.806051,0.00015763,2]
[340246195,1728915046546,-358.806051,0.00015763,2]
[340246196,1728915046557,-154.679856,0.00015763,2]
[340246197,1728915046567,-185.268848,0.00015763,2]
[340246198,1728915046577,-185.268848,0.00015763,2]
[340246199,1728915046587,-151.0,0.00015763,2]
[340246200,1728915046597,-151.0,0.00015763,2]
[340246201,1728915046607,-151.0,0.00015763,2]
[340246202,1728915046616,-151.0,0.00015763,2]
[340246203,1728915046626,-151.0,0.00015763,2]
[340246204,1728915046635,-151.0,0.00015763,2]
[340246205,1728915046645,-151.0,0.00015763,2]
[340246206,1728915046654,-151.0,0.00015763,2]
[340246207,1728915046664,-568.473388,0.00015763,2]
[340246208,1728915046674,-568.473388,0.00015763,2]
[340246209,1728915046684,-151.0,0.00015763,2]
[340246210,1728915046693,-151.0,0.00015763,2]
[340246211,1728915046703,-2764.15205,0.00015763,2]
[340246212,1728915046712,-2764.15205,0.00015763,2]
[340246213,1728915046728,-151.0,0.00015763,2]
[340246214,1728915046737,-151.0,0.00015763,2]
[340246215,1728915046746,-151.0,0.00015763,2]
[340246216,1728915046756,-411.134264,0.00015763,2]
[340246217,1728915046766,-151.0,0.00015763,2]
[340246218,1728915046775,-151.0,0.00015763,2]
[340246219,1728915046785,-151.0,0.00015763,2]
[340246220,1728915046794,-151.0,0.00015763,2]
[340246221,1728915046804,-267.666926,0.00015763,2]
[340246222,1728915046813,-199.598128,0.00015763,2]
[340246223,1728915046823,-199.598128,0.00015763,2]
[340246224,1728915046832,-151.0,0.00015763,2]
[340246225,1728915046841,-151.0,0.00015763,2]
[340246226,1728915046851,-155.037735,0.00015763,2]
[340246227,1728915046863,-151.0,0.00015763,2]
[340246228,1728915046873,-151.0,0.00015763,2]
[340246229,1728915046882,-151.0,0.00015763,2]
[340246230,1728915046891,-151.0,0.00015763,2]
[340246231,1728915046902,-151.0,0.00015763,2]
[340246232,1728915046911,-151.0,0.00015763,2]
[340246233,1728915046921,-151.0,0.00015763,2]
[340246234,1728915046931,-296.512666,0.00015763,2]
[340246235,1728915046940,-296.512666,0.00015763,2]
[340246236,1728915046949,-151.0,0.00015763,2]
[340246237,1728915046958,-151.0,0.00015763,2]
[340246238,1728915046970,-151.0,0.00015763,2]
[340246239,1728915046979,-151.0,0.00015763,2]
[340246240,1728915046988,-178.66769,0.00015763,2]
[340246241,1728915046997,-178.66769,0.00015763,2]
[340246242,1728915047007,-178.66769,0.00015763,2]
[340246243,1728915047016,-178.66769,0.00015763,2]
[340246244,1728915047025,-151.0,0.00015763,2]
[340246245,1728915047034,-151.0,0.00015763,2]
[340246246,1728915047043,-197.697859,0.00015763,2]
[340246247,1728915047051,-197.697859,0.00015763,2]
[340246248,1728915047060,-151.0,0.00015763,2]
[340246249,1728915047070,-730.29271,0.00015763,2]
[340246250,1728915047079,-151.0,0.00015763,2]
[340246251,1728915047088,-222.769299,0.00015763,2]
[340246252,1728915047097,-222.769299,0.00015763,2]
[340246253,1728915047106,-648.501164,0.00015763,2]
[340246254,1728915047115,-648.501164,0.00015763,2]
[340246255,1728915047125,-530.00401,0.00015763,2]
[340246256,1728915047135,-218.37,0.00015763,2]
[340246257,1728915047144,-218.37,0.00015763,2]
[340246258,1728915047154,-530.00401,0.00015763,2]
[340246259,1728915047163,-202.54179,0.00015763,2]
[340246260,1728915047173,-202.54179,0.00015763,2]
[340246261,1728915047183,-151.0,0.00015763,2]
[340246262,1728915047192,-330.218464,0.00015763,2]
[340246263,1728915047202,-330.218464,0.00015763,2]
[340246264,1728915047211,-151.0,0.00015763,2]
[340246265,1728915047223,-151.0,0.00015763,2]
[340246266,1728915047232,-151.0,0.00015763,2]
[340246267,1728915047242,-151.0,0.00015763,2]
[340246268,1728915047251,-151.0,0.00015763,2]
[340246269,1728915047260,-230.374136,0.00015763,2]
[340246270,1728915047270,-179.562756,0.00015763,2]
[340246271,1728915047279,-179.562756,0.00015763,2]
[340246272,1728915047288,-510.659858,0.00015763,2]
[340246273,1728915047297,-510.659858,0.00015763,2]
[340246274,1728915047306,-510.659858,0.00015763,2]
[340246275,1728915047315,-510.659858,0.00015763,2]
[340246276,1728915047324,-151.0,0.00015763,2]
[340246277,1728915047333,-263.294243,0.00015763,2]
[340246278,1728915047343,-263.294243,0.00015763,2]
[340246279,1728915047352,-157.182502,0.00015763,2]